[Event "Open Nuevo Centro. Jornada 2"]
[Site "Chess.com"]
[Date "2020.06.26"]
[Round "7"]
[White "Ferrando Lacruz, Nicolás "]
[Black "Martínez Cuenca, Adrián "]
[Result "0-1"]
[WhiteElo "1008"]
[BlackElo "746"]
[TimeControl "180+2"]
[EndTime "11:46:12 PDT"]
[Termination "Victoria de AdrianM12 por jaque mate"]

1. d4 {[%clk 0:03:01]} 1... d5 {[%clk 0:02:59.5]} 2. Bf4 {[%clk 0:03:01.3]} 2...
Nc6 {[%clk 0:02:50.8]} 3. Nf3 {[%clk 0:03:00.8]} 3... Nf6 {[%clk 0:02:48]} 4. e3
{[%clk 0:03:01.1]} 4... g6 {[%clk 0:02:21.8]} 5. Nbd2 {[%clk 0:02:58.9]} 5...
Bg7 {[%clk 0:02:14.2]} 6. Ne5 {[%clk 0:02:57.3]} 6... O-O {[%clk 0:02:00.8]} 7.
Bd3 {[%clk 0:02:51.7]} 7... Nb4 {[%clk 0:01:37.9]} 8. h4 {[%clk 0:02:50.6]} 8...
a5 {[%clk 0:01:30.6]} 9. g4 {[%clk 0:02:48.1]} 9... Nxd3+ {[%clk 0:01:29.7]} 10.
cxd3 {[%clk 0:02:45.1]} 10... a4 {[%clk 0:01:28.4]} 11. h5 {[%clk 0:02:43.9]}
11... b6 {[%clk 0:01:18.4]} 12. hxg6 {[%clk 0:02:42.6]} 12... fxg6 {[%clk
0:01:18.1]} 13. g5 {[%clk 0:02:42.4]} 13... Ng4 {[%clk 0:01:15.6]} 14. Qf3
{[%clk 0:02:34.3]} 14... Nxe5 {[%clk 0:01:00.2]} 15. Bxe5 {[%clk 0:02:28]} 15...
Bxe5 {[%clk 0:00:58.8]} 16. Qh3 {[%clk 0:02:26.5]} 16... Bxh3 {[%clk 0:00:51.9]}
17. Rxh3 {[%clk 0:02:18.8]} 17... Qd7 {[%clk 0:00:41.9]} 18. Rf3 {[%clk
0:02:14.4]} 18... Rxf3 {[%clk 0:00:41.1]} 19. Nxf3 {[%clk 0:02:14.7]} 19... Bg7
{[%clk 0:00:36.2]} 20. Ke2 {[%clk 0:02:08.9]} 20... c5 {[%clk 0:00:31.6]} 21.
dxc5 {[%clk 0:02:08.7]} 21... bxc5 {[%clk 0:00:31.6]} 22. d4 {[%clk 0:02:08]}
22... cxd4 {[%clk 0:00:27.9]} 23. exd4 {[%clk 0:02:07.6]} 23... Qb5+ {[%clk
0:00:28]} 24. Ke3 {[%clk 0:02:06.7]} 24... e5 {[%clk 0:00:20.8]} 25. dxe5 {[%clk
0:02:05]} 25... Bxe5 {[%clk 0:00:20.4]} 26. Nxe5 {[%clk 0:01:53.5]} 26... Qxb2
{[%clk 0:00:16.1]} 27. Rf1 {[%clk 0:01:48]} 27... Qxa2 {[%clk 0:00:13.5]} 28. f4
{[%clk 0:01:49]} 28... Qa3+ {[%clk 0:00:12.7]} 29. Ke2 {[%clk 0:01:48.3]} 29...
Qb2+ {[%clk 0:00:11]} 30. Ke3 {[%clk 0:01:48.8]} 30... Qb5 {[%clk 0:00:03.6]}
31. Kd4 {[%clk 0:01:48.8]} 31... Qxf1 {[%clk 0:00:03.7]} 32. Kc5 {[%clk
0:01:48.3]} 32... Qxf4 {[%clk 0:00:03.8]} 33. Nd7 {[%clk 0:01:48.8]} 33... Qc7+
{[%clk 0:00:03.4]} 34. Kd4 {[%clk 0:01:48.9]} 34... Qxd7 {[%clk 0:00:03.7]} 35.
Ke5 {[%clk 0:01:47.9]} 35... Qc6 {[%clk 0:00:04.2]} 36. Kf4 {[%clk 0:01:48.5]}
36... Qc4+ {[%clk 0:00:04.7]} 37. Ke5 {[%clk 0:01:49.5]} 37... Re8+ {[%clk
0:00:05.5]} 38. Kd6 {[%clk 0:01:50.3]} 38... Qc8 {[%clk 0:00:05.6]} 39. Kxd5
{[%clk 0:01:50.5]} 39... Qd8+ {[%clk 0:00:05.3]} 40. Kc6 {[%clk 0:01:51.1]}
40... Re7 {[%clk 0:00:05.8]} 41. Kc5 {[%clk 0:01:51.4]} 41... Rc7+ {[%clk
0:00:05.1]} 42. Kb6 {[%clk 0:01:51.8]} 42... Qb8+ {[%clk 0:00:05.6]} 43. Ka6
{[%clk 0:01:52]} 43... a3 {[%clk 0:00:06.6]} 44. Ka5 {[%clk 0:01:52.6]} 44... a2
{[%clk 0:00:08.5]} 45. Ka6 {[%clk 0:01:53.5]} 45... a1=Q# {[%clk 0:00:09.5]} 0

[Event "Open Nuevo Centro. Jornada 2"]
[Site "Chess.com"]
[Date "2020.06.26"]
[Round "7"]
[White "Cayon Pelaez, Pablo"]
[Black "Lopez Mateo, Juan Carlos"]
[Result "0-1"]
[WhiteElo "1795"]
[BlackElo "2000"]
[TimeControl "180+2"]
[EndTime "11:46:29 PDT"]
[Termination "Victoria de Tarantantinov por tiempo"]

1. e4 {[%clk 0:02:59.6]} 1... c5 {[%clk 0:02:58.3]} 2. Nf3 {[%clk 0:03:00.4]}
2... e6 {[%clk 0:02:56.4]} 3. c3 {[%clk 0:02:59.2]} 3... Nf6 {[%clk 0:02:56.4]}
4. e5 {[%clk 0:02:59.2]} 4... Nd5 {[%clk 0:02:57.3]} 5. d4 {[%clk 0:02:59.9]}
5... cxd4 {[%clk 0:02:51.1]} 6. cxd4 {[%clk 0:03:01.8]} 6... d6 {[%clk
0:02:49.8]} 7. Bc4 {[%clk 0:02:38.9]} 7... Nc6 {[%clk 0:02:49.4]} 8. O-O {[%clk
0:02:38.1]} 8... Be7 {[%clk 0:02:47.9]} 9. Nc3 {[%clk 0:02:27.8]} 9... Nxc3
{[%clk 0:02:41.5]} 10. bxc3 {[%clk 0:02:29.7]} 10... dxe5 {[%clk 0:02:39.8]} 11.
dxe5 {[%clk 0:02:28.6]} 11... Qc7 {[%clk 0:02:16.3]} 12. Re1 {[%clk 0:02:09]}
12... b6 {[%clk 0:02:14.2]} 13. Bb3 {[%clk 0:01:51.8]} 13... O-O {[%clk
0:02:08.3]} 14. Bb2 {[%clk 0:01:41.9]} 14... Rd8 {[%clk 0:01:58.8]} 15. Qe2
{[%clk 0:01:39.5]} 15... a6 {[%clk 0:01:52.7]} 16. Rad1 {[%clk 0:01:37.4]} 16...
Bb7 {[%clk 0:01:42.1]} 17. Nd4 {[%clk 0:01:13.9]} 17... Rac8 {[%clk 0:01:23.8]}
18. Nxe6 {[%clk 0:00:53.3]} 18... fxe6 {[%clk 0:01:12.1]} 19. Bxe6+ {[%clk
0:00:52.5]} 19... Kh8 {[%clk 0:01:13.7]} 20. Bxc8 {[%clk 0:00:52.1]} 20... Bxc8
{[%clk 0:01:15]} 21. Rxd8+ {[%clk 0:00:50.6]} 21... Nxd8 {[%clk 0:01:12.4]} 22.
Qf3 {[%clk 0:00:35.6]} 22... Be6 {[%clk 0:01:06.4]} 23. a3 {[%clk 0:00:28.3]}
23... Kg8 {[%clk 0:01:01.5]} 24. Qh5 {[%clk 0:00:19.6]} 24... Qc6 {[%clk
0:00:57.4]} 25. Qf3 {[%clk 0:00:18.9]} 25... Bd5 {[%clk 0:00:52.9]} 26. Qg3
{[%clk 0:00:17.4]} 26... Ne6 {[%clk 0:00:51.3]} 27. f4 {[%clk 0:00:10]} 27...
Bc5+ {[%clk 0:00:41]} 28. Kh1 {[%clk 0:00:10.8]} 28... Nxf4 {[%clk 0:00:41.8]}
29. Rg1 {[%clk 0:00:02.4]} 29... Ne2 {[%clk 0:00:26.2]} 0

[Event "Open Nuevo Centro. Jornada 2"]
[Site "Chess.com"]
[Date "2020.06.26"]
[Round "7"]
[White "Cinà Asensio, Luca "]
[Black "Zakharash, Georgii"]
[Result "0-1"]
[WhiteElo "628"]
[BlackElo "1066"]
[TimeControl "180+2"]
[EndTime "11:46:29 PDT"]
[Termination "Victoria de georgiizakharash por jaque mate"]

1. e4 {[%clk 0:03:01.6]} 1... c5 {[%clk 0:02:58.1]} 2. Bc4 {[%clk 0:03:02.3]}
2... d6 {[%clk 0:02:58.2]} 3. Nf3 {[%clk 0:03:02.2]} 3... Nf6 {[%clk 0:02:59]}
4. Ng5 {[%clk 0:03:01.9]} 4... e6 {[%clk 0:02:59.3]} 5. O-O {[%clk 0:03:00.6]}
5... Be7 {[%clk 0:02:58.3]} 6. d3 {[%clk 0:02:58.3]} 6... O-O {[%clk 0:02:57.6]}
7. Qe1 {[%clk 0:02:54.9]} 7... Nc6 {[%clk 0:02:56.4]} 8. Bb5 {[%clk 0:02:54.2]}
8... Bd7 {[%clk 0:02:55.6]} 9. Bxc6 {[%clk 0:02:54.1]} 9... Bxc6 {[%clk
0:02:56]} 10. Qd1 {[%clk 0:02:54.3]} 10... a6 {[%clk 0:02:48.5]} 11. Bd2 {[%clk
0:02:52.8]} 11... b5 {[%clk 0:02:48]} 12. Qe1 {[%clk 0:02:52.6]} 12... d5 {[%clk
0:02:46.9]} 13. Ba5 {[%clk 0:02:52]} 13... Qd7 {[%clk 0:02:40.8]} 14. exd5
{[%clk 0:02:50.5]} 14... exd5 {[%clk 0:02:38.2]} 15. Nf3 {[%clk 0:02:43.2]}
15... b4 {[%clk 0:02:37.4]} 16. b3 {[%clk 0:02:37.4]} 16... Rab8 {[%clk
0:02:34.9]} 17. Nbd2 {[%clk 0:02:34]} 17... Rb5 {[%clk 0:02:32.8]} 18. Ne5
{[%clk 0:02:28.2]} 18... Bd6 {[%clk 0:02:23.2]} 19. Nxd7 {[%clk 0:02:25.2]}
19... Bxd7 {[%clk 0:02:11.4]} 20. Bxb4 {[%clk 0:02:18.7]} 20... Rxb4 {[%clk
0:02:09.6]} 21. Nf3 {[%clk 0:02:17.1]} 21... Re8 {[%clk 0:02:04.1]} 22. Qd2
{[%clk 0:02:14.1]} 22... Bf4 {[%clk 0:01:59.1]} 23. Qxf4 {[%clk 0:02:12.6]}
23... Rxf4 {[%clk 0:01:55.7]} 24. Nd2 {[%clk 0:02:08.1]} 24... Rb4 {[%clk
0:01:52.1]} 25. c3 {[%clk 0:02:06.4]} 25... Rb6 {[%clk 0:01:51]} 26. Rab1 {[%clk
0:02:03.8]} 26... Rbe6 {[%clk 0:01:49.8]} 27. g3 {[%clk 0:02:00.8]} 27... Re2
{[%clk 0:01:48.6]} 28. Rfe1 {[%clk 0:02:00]} 28... Rxe1+ {[%clk 0:01:48]} 29.
Rxe1 {[%clk 0:02:00.7]} 29... Rxe1+ {[%clk 0:01:49.9]} 30. Kg2 {[%clk
0:02:00.7]} 30... Re2 {[%clk 0:01:49.4]} 31. Nf3 {[%clk 0:01:59.6]} 31... Rxa2
{[%clk 0:01:48.6]} 32. c4 {[%clk 0:01:56.5]} 32... dxc4 {[%clk 0:01:47.6]} 33.
bxc4 {[%clk 0:01:58.4]} 33... Rd2 {[%clk 0:01:45.7]} 34. Nxd2 {[%clk 0:01:57.9]}
34... a5 {[%clk 0:01:43.9]} 35. Nb3 {[%clk 0:01:55.5]} 35... a4 {[%clk
0:01:43.7]} 36. Nxc5 {[%clk 0:01:55.9]} 36... a3 {[%clk 0:01:29.8]} 37. Nb3
{[%clk 0:01:55]} 37... a2 {[%clk 0:01:26.7]} 38. Kf1 {[%clk 0:01:53]} 38... Ba4
{[%clk 0:01:26.3]} 39. Na1 {[%clk 0:01:51.4]} 39... Nd7 {[%clk 0:01:23.8]} 40.
Ke1 {[%clk 0:01:51.3]} 40... Nc5 {[%clk 0:01:23.2]} 41. Kd2 {[%clk 0:01:51.2]}
41... Nb3+ {[%clk 0:01:24.1]} 42. Nxb3 {[%clk 0:01:48.7]} 42... Bxb3 {[%clk
0:01:23.4]} 43. Kc1 {[%clk 0:01:49.4]} 43... a1=Q+ {[%clk 0:01:23.8]} 44. Kd2
{[%clk 0:01:49.5]} 44... Qd1+ {[%clk 0:01:22.6]} 45. Ke3 {[%clk 0:01:49.9]}
45... Bc2 {[%clk 0:01:19.5]} 46. Kd4 {[%clk 0:01:46.9]} 46... Qxd3+ {[%clk
0:01:20.5]} 47. Kc5 {[%clk 0:01:46.5]} 47... Bb3 {[%clk 0:01:20.3]} 48. Kb4
{[%clk 0:01:44]} 48... Qxc4+ {[%clk 0:01:20.8]} 49. Ka5 {[%clk 0:01:43.8]} 49...
Ba4 {[%clk 0:01:18.8]} 50. Kb6 {[%clk 0:01:43.9]} 50... Qb5+ {[%clk 0:01:18.2]}
51. Kc7 {[%clk 0:01:43.2]} 51... Qa6 {[%clk 0:01:18.8]} 52. Kd8 {[%clk
0:01:41.6]} 52... Qa7 {[%clk 0:01:17.1]} 53. Kc8 {[%clk 0:01:41.6]} 53... Bd7+
{[%clk 0:01:15.5]} 54. Kd8 {[%clk 0:01:40.9]} 54... Ba4 {[%clk 0:01:06.3]} 55.
Kc8 {[%clk 0:01:39.7]} 55... Qd7+ {[%clk 0:01:05.6]} 56. Kb8 {[%clk 0:01:39.6]}
56... Bc6 {[%clk 0:01:03.6]} 57. g4 {[%clk 0:01:29]} 57... Qb7# {[%clk
0:01:05.5]} 0

[Event "Open Nuevo Centro. Jornada 2"]
[Site "Chess.com"]
[Date "2020.06.26"]
[Round "7"]
[White "Remolar Gallen, Jose"]
[Black "Silva Rodriguez, Fernando"]
[Result "0-1"]
[WhiteElo "2349"]
[BlackElo "2478"]
[TimeControl "180+2"]
[EndTime "11:46:37 PDT"]
[Termination "Victoria de HarnFer por jaque mate"]

1. d4 {[%clk 0:03:01.9]} 1... d5 {[%clk 0:03:01.3]} 2. c4 {[%clk 0:03:02]} 2...
dxc4 {[%clk 0:03:03.2]} 3. e4 {[%clk 0:02:59.4]} 3... b5 {[%clk 0:03:04.2]} 4.
a4 {[%clk 0:02:58.7]} 4... c6 {[%clk 0:03:04]} 5. Nf3 {[%clk 0:02:48.6]} 5...
Nf6 {[%clk 0:02:59.9]} 6. b3 {[%clk 0:02:46]} 6... Nxe4 {[%clk 0:02:24]} 7. axb5
{[%clk 0:02:46.4]} 7... cxb5 {[%clk 0:02:24.4]} 8. bxc4 {[%clk 0:02:47.5]} 8...
b4 {[%clk 0:01:40.1]} 9. Bd3 {[%clk 0:02:47.4]} 9... Bb7 {[%clk 0:01:03.6]} 10.
Qa4+ {[%clk 0:02:10.2]} 10... Nd7 {[%clk 0:01:05]} 11. Qxb4 {[%clk 0:02:04.2]}
11... Qc7 {[%clk 0:01:06.3]} 12. Bf4 {[%clk 0:01:48]} 12... e5 {[%clk
0:01:06.4]} 13. Qb5 {[%clk 0:01:20.4]} 13... exf4 {[%clk 0:01:04.5]} 14. O-O
{[%clk 0:01:18.7]} 14... Be7 {[%clk 0:00:38.2]} 15. Re1 {[%clk 0:01:12.8]} 15...
Nd6 {[%clk 0:00:36]} 16. Qg5 {[%clk 0:01:10.6]} 16... Nf6 {[%clk 0:00:20.1]} 17.
Qxg7 {[%clk 0:01:11.4]} 17... Rg8 {[%clk 0:00:20.9]} 18. Qxf6 {[%clk 0:01:12.7]}
18... Bxf3 {[%clk 0:00:17.5]} 19. c5 {[%clk 0:01:07.8]} 19... Rxg2+ {[%clk
0:00:16.4]} 20. Kf1 {[%clk 0:01:07.8]} 20... Ne4 {[%clk 0:00:08.2]} 21. Qh8+
{[%clk 0:00:31]} 21... Kd7 {[%clk 0:00:09.4]} 22. Bb5+ {[%clk 0:00:30.9]} 22...
Ke6 {[%clk 0:00:09]} 23. Bc4+ {[%clk 0:00:30.1]} 23... Kf5 {[%clk 0:00:06.2]}
24. Qxh7+ {[%clk 0:00:30.4]} 24... Rg6 {[%clk 0:00:04.1]} 25. Qxf7+ {[%clk
0:00:24.1]} 25... Bf6 {[%clk 0:00:05.6]} 26. Be6+ {[%clk 0:00:19.5]} 26... Kg5
{[%clk 0:00:05.7]} 27. Qxc7 {[%clk 0:00:20.6]} 27... Nd2+ {[%clk 0:00:04.6]} 28.
Kg1 {[%clk 0:00:21.2]} 28... Kh4+ {[%clk 0:00:05.3]} 29. Bg4 {[%clk 0:00:15.6]}
29... Rxg4# {[%clk 0:00:06.9]} 0

[Event "Open Nuevo Centro. Jornada 2"]
[Site "Chess.com"]
[Date "2020.06.26"]
[Round "7"]
[White "Alvarez Usina, Jordi"]
[Black "Ainsa Jimenez, Lucas"]
[Result "1-0"]
[WhiteElo "1213"]
[BlackElo "909"]
[TimeControl "180+2"]
[EndTime "11:46:51 PDT"]
[Termination "Victoria de jordi_alvarez por jaque mate"]

1. d4 {[%clk 0:01:55.3]} 1... d5 {[%clk 0:02:59.8]} 2. Bf4 {[%clk 0:01:54.5]}
2... Nf6 {[%clk 0:02:55.7]} 3. e3 {[%clk 0:01:54.2]} 3... Nc6 {[%clk 0:02:55.6]}
4. Nf3 {[%clk 0:01:52.7]} 4... Bf5 {[%clk 0:02:56.1]} 5. Nbd2 {[%clk 0:01:49.2]}
5... Nb4 {[%clk 0:02:55.9]} 6. c3 {[%clk 0:01:45.6]} 6... Nc2+ {[%clk
0:02:55.7]} 7. Ke2 {[%clk 0:01:39.4]} 7... Qd7 {[%clk 0:02:50.7]} 8. Nb3 {[%clk
0:01:16.8]} 8... Nxa1 {[%clk 0:02:39.8]} 9. Qxa1 {[%clk 0:01:16.1]} 9... Qb5+
{[%clk 0:02:35.1]} 10. Kd2 {[%clk 0:01:14.2]} 10... Qd7 {[%clk 0:02:33.9]} 11.
Nc5 {[%clk 0:01:12.2]} 11... Qc6 {[%clk 0:02:17]} 12. Ne5 {[%clk 0:01:10.4]}
12... Qb6 {[%clk 0:02:16.1]} 13. Na4 {[%clk 0:00:43.1]} 13... Qe6 {[%clk
0:02:02.3]} 14. Nc5 {[%clk 0:00:32.9]} 14... Qd6 {[%clk 0:02:01]} 15. Nxf7
{[%clk 0:00:27.6]} 15... Qe6 {[%clk 0:01:56]} 16. Nxe6 {[%clk 0:00:24.6]} 16...
Rg8 {[%clk 0:01:54]} 17. Nxc7+ {[%clk 0:00:23.7]} 17... Kd7 {[%clk 0:01:53]} 18.
Nxa8 {[%clk 0:00:21.2]} 18... e6 {[%clk 0:01:52.3]} 19. Nc7 {[%clk 0:00:20]}
19... e5 {[%clk 0:01:47.3]} 20. Bxe5 {[%clk 0:00:18.2]} 20... Ng4 {[%clk
0:01:46.6]} 21. Bb5+ {[%clk 0:00:16.6]} 21... Ke7 {[%clk 0:01:45.3]} 22. Ng5
{[%clk 0:00:13.3]} 22... Nxf2 {[%clk 0:01:45]} 23. Rf1 {[%clk 0:00:13.4]} 23...
Ne4+ {[%clk 0:01:44.4]} 24. Ke2 {[%clk 0:00:12.4]} 24... Nxg5 {[%clk 0:01:42.3]}
25. Rxf5 {[%clk 0:00:11.9]} 25... Kd8 {[%clk 0:01:37]} 26. Qf1 {[%clk
0:00:10.3]} 26... Ke7 {[%clk 0:01:33.7]} 27. Bg3 {[%clk 0:00:07.7]} 27... h6
{[%clk 0:01:33.3]} 28. Bh4 {[%clk 0:00:08.1]} 28... g6 {[%clk 0:01:30.4]} 29.
Nxd5+ {[%clk 0:00:08]} 29... Ke6 {[%clk 0:01:29.9]} 30. Rxf8 {[%clk 0:00:07.8]}
30... Rxf8 {[%clk 0:01:29.9]} 31. Nc7+ {[%clk 0:00:07.7]} 31... Ke7 {[%clk
0:01:29.3]} 32. Bxg5+ {[%clk 0:00:08]} 32... hxg5 {[%clk 0:01:29.9]} 33. Nd5+
{[%clk 0:00:07.7]} 33... Ke6 {[%clk 0:01:27.9]} 34. Qxf8 {[%clk 0:00:08.1]}
34... Kxd5 {[%clk 0:01:29.7]} 35. Qf7+ {[%clk 0:00:07.7]} 35... Ke4 {[%clk
0:01:30]} 36. Qxg6+ {[%clk 0:00:08.2]} 36... Kd5 {[%clk 0:01:30.4]} 37. Qf5+
{[%clk 0:00:08.3]} 37... Kd6 {[%clk 0:01:30.6]} 38. Qxg5 {[%clk 0:00:08.8]}
38... Kc7 {[%clk 0:01:31]} 39. h4 {[%clk 0:00:09.6]} 39... Kb6 {[%clk
0:01:31.6]} 40. h5 {[%clk 0:00:09.6]} 40... Ka5 {[%clk 0:01:32.4]} 41. Bd3+
{[%clk 0:00:09.9]} 41... Kb6 {[%clk 0:01:30.3]} 42. h6 {[%clk 0:00:09.5]} 42...
Kc6 {[%clk 0:01:30.1]} 43. h7 {[%clk 0:00:09.5]} 43... a6 {[%clk 0:01:30.4]} 44.
h8=Q {[%clk 0:00:08.9]} 44... Kb6 {[%clk 0:01:30.7]} 45. Qhf6+ {[%clk
0:00:08.2]} 45... Ka7 {[%clk 0:01:30.8]} 46. Qge5 {[%clk 0:00:08.7]} 46... Ka8
{[%clk 0:01:29.2]} 47. Qd8+ {[%clk 0:00:08.2]} 47... Ka7 {[%clk 0:01:29.7]} 48.
Qc5+ {[%clk 0:00:08.6]} 48... b6 {[%clk 0:01:30.5]} 49. Qcc7# {[%clk 0:00:09.3]}
1

[Event "Open Nuevo Centro. Jornada 2"]
[Site "Chess.com"]
[Date "2020.06.26"]
[Round "7"]
[White "Gimeno Higueras, Roberto"]
[Black "Salvador Buiza, Victor"]
[Result "1-0"]
[WhiteElo "1986"]
[BlackElo "1761"]
[TimeControl "180+2"]
[EndTime "11:46:56 PDT"]
[Termination "Victoria de Chicogrande2 por tiempo"]

1. e4 {[%clk 0:03:01.9]} 1... e5 {[%clk 0:03:00.7]} 2. Nf3 {[%clk 0:03:02.5]}
2... Nc6 {[%clk 0:03:02]} 3. Bb5 {[%clk 0:03:03.2]} 3... Bc5 {[%clk 0:03:02.1]}
4. O-O {[%clk 0:03:03.9]} 4... d6 {[%clk 0:03:03.3]} 5. c3 {[%clk 0:03:04.3]}
5... Bg4 {[%clk 0:03:03.9]} 6. h3 {[%clk 0:03:04.1]} 6... Bxf3 {[%clk
0:03:04.5]} 7. Qxf3 {[%clk 0:03:05.3]} 7... Ne7 {[%clk 0:03:04.7]} 8. a4 {[%clk
0:02:54.4]} 8... a6 {[%clk 0:03:01.2]} 9. Bc4 {[%clk 0:02:55.1]} 9... O-O {[%clk
0:02:58.8]} 10. d3 {[%clk 0:02:55]} 10... a5 {[%clk 0:02:58.3]} 11. Kh1 {[%clk
0:02:51.3]} 11... Qe8 {[%clk 0:02:49.1]} 12. Qg3 {[%clk 0:02:36.3]} 12... Kh8
{[%clk 0:02:46.8]} 13. f4 {[%clk 0:02:33.6]} 13... f5 {[%clk 0:02:40.8]} 14. Nd2
{[%clk 0:02:22.8]} 14... exf4 {[%clk 0:02:31.8]} 15. Rxf4 {[%clk 0:02:20.3]}
15... fxe4 {[%clk 0:02:31.6]} 16. Nxe4 {[%clk 0:02:17.7]} 16... Nf5 {[%clk
0:02:20.5]} 17. Qg4 {[%clk 0:01:57]} 17... Ne5 {[%clk 0:02:17]} 18. Qe2 {[%clk
0:01:37.8]} 18... Nxc4 {[%clk 0:02:15.8]} 19. dxc4 {[%clk 0:01:36.5]} 19... Ng3+
{[%clk 0:01:50.7]} 20. Nxg3 {[%clk 0:01:35.8]} 20... Qg6 {[%clk 0:01:29.7]} 21.
Rg4 {[%clk 0:01:24.8]} 21... Qf6 {[%clk 0:01:03.3]} 22. Bg5 {[%clk 0:01:23.7]}
22... Qg6 {[%clk 0:00:46.8]} 23. Rf1 {[%clk 0:01:19.6]} 23... Rxf1+ {[%clk
0:00:39.8]} 24. Qxf1 {[%clk 0:01:17.9]} 24... d5 {[%clk 0:00:40.2]} 25. Qf5
{[%clk 0:01:17.3]} 25... Qe8 {[%clk 0:00:26.8]} 26. Bd2 {[%clk 0:00:56.7]} 26...
Qe7 {[%clk 0:00:17.4]} 27. cxd5 {[%clk 0:00:48]} 27... Re8 {[%clk 0:00:15.5]}
28. Re4 {[%clk 0:00:46.2]} 28... Qd8 {[%clk 0:00:15.9]} 29. Rxe8+ {[%clk
0:00:43.8]} 29... Qxe8 {[%clk 0:00:17.2]} 30. Qe6 {[%clk 0:00:44.7]} 30... Qf8
{[%clk 0:00:17.9]} 31. Nf5 {[%clk 0:00:42.8]} 31... h6 {[%clk 0:00:15.3]} 32.
Be3 {[%clk 0:00:37.2]} 32... Bxe3 {[%clk 0:00:08.7]} 33. Nxe3 {[%clk 0:00:38]}
33... Qf2 {[%clk 0:00:10]} 34. Qc8+ {[%clk 0:00:33.9]} 34... Kh7 {[%clk
0:00:10.5]} 35. Qf5+ {[%clk 0:00:34.2]} 35... Qxf5 {[%clk 0:00:11.9]} 36. Nxf5
{[%clk 0:00:35.3]} 1

[Event "Open Nuevo Centro. Jornada 2"]
[Site "Chess.com"]
[Date "2020.06.26"]
[Round "7"]
[White "Vega Gutiérrez, Sabrina"]
[Black "Yuste Valenzuela, Alejandro"]
[Result "1-0"]
[WhiteElo "2046"]
[BlackElo "1849"]
[TimeControl "180+2"]
[EndTime "11:46:57 PDT"]
[Termination "Victoria de Valeron87 por abandono"]

1. e4 {[%clk 0:03:01.9]} 1... c5 {[%clk 0:03:00]} 2. Nf3 {[%clk 0:03:02.5]} 2...
d6 {[%clk 0:03:00.8]} 3. d4 {[%clk 0:03:04.1]} 3... cxd4 {[%clk 0:03:02.7]} 4.
Qxd4 {[%clk 0:03:05.7]} 4... Nc6 {[%clk 0:03:01.9]} 5. Bb5 {[%clk 0:03:06.8]}
5... Bd7 {[%clk 0:03:02.7]} 6. Bxc6 {[%clk 0:03:07.7]} 6... Bxc6 {[%clk
0:03:04.6]} 7. Nc3 {[%clk 0:03:09]} 7... Nf6 {[%clk 0:03:03.6]} 8. Bg5 {[%clk
0:03:10.5]} 8... e6 {[%clk 0:03:03.9]} 9. O-O-O {[%clk 0:03:10.7]} 9... Be7
{[%clk 0:03:03]} 10. Qd3 {[%clk 0:03:08.1]} 10... Qa5 {[%clk 0:02:58]} 11. h4
{[%clk 0:03:04.6]} 11... Qa6 {[%clk 0:02:58.7]} 12. Qxa6 {[%clk 0:03:01]} 12...
bxa6 {[%clk 0:03:00.6]} 13. Nd4 {[%clk 0:02:54.6]} 13... Bb7 {[%clk 0:02:49.2]}
14. f3 {[%clk 0:02:54.9]} 14... h6 {[%clk 0:02:47.6]} 15. Be3 {[%clk 0:02:54.2]}
15... O-O {[%clk 0:02:45.4]} 16. Nb3 {[%clk 0:02:53.6]} 16... Rfb8 {[%clk
0:02:30.8]} 17. g4 {[%clk 0:02:53.1]} 17... Nd7 {[%clk 0:02:20.2]} 18. g5 {[%clk
0:02:41.4]} 18... h5 {[%clk 0:02:18.7]} 19. f4 {[%clk 0:02:34.6]} 19... g6
{[%clk 0:02:19.2]} 20. Rhe1 {[%clk 0:02:33.4]} 20... f6 {[%clk 0:01:59]} 21. f5
{[%clk 0:01:55.3]} 21... gxf5 {[%clk 0:01:50]} 22. exf5 {[%clk 0:01:53.6]} 22...
exf5 {[%clk 0:01:48.1]} 23. Nd4 {[%clk 0:01:49.2]} 23... fxg5 {[%clk 0:01:37.8]}
24. Nxf5 {[%clk 0:01:36.3]} 24... Bf8 {[%clk 0:01:28.5]} 25. hxg5 {[%clk
0:01:18.7]} 25... Ne5 {[%clk 0:01:20.9]} 26. Nxd6 {[%clk 0:01:17.6]} 26... Bxd6
{[%clk 0:01:11.3]} 27. Rxd6 {[%clk 0:01:18.2]} 27... Nc4 {[%clk 0:01:12.4]} 28.
Rg6+ {[%clk 0:01:13.3]} 28... Kf7 {[%clk 0:01:02.7]} 29. Rf6+ {[%clk 0:01:14.3]}
29... Kg7 {[%clk 0:01:02.1]} 30. Bd4 {[%clk 0:01:15.3]} 30... Kg8 {[%clk
0:00:53.2]} 31. Rg6+ {[%clk 0:01:02.2]} 31... Kf8 {[%clk 0:00:44.8]} 32. Bc5+
{[%clk 0:00:47.7]} 32... Kf7 {[%clk 0:00:40.1]} 33. Rf6+ {[%clk 0:00:48.7]}
33... Kg8 {[%clk 0:00:39.1]} 34. Re7 {[%clk 0:00:49.2]} 34... Rd8 {[%clk
0:00:19.6]} 35. Rg6+ {[%clk 0:00:38.5]} 35... Kh8 {[%clk 0:00:20.3]} 36. Rxb7
{[%clk 0:00:32.1]} 36... Rac8 {[%clk 0:00:17.3]} 37. Be7 {[%clk 0:00:31.4]} 1